Workbook

Sheet How To Use This Tool
A6: How to Use the CSRHub SDG Calculator | I6: SDG Materiality Threshold Control
I7: Customize your SDG Materiality Level | J7: 0.85
A8: Background | I8: SDG Compliance Results
A9: SDG stands for Sustainable Development Goals. These are a set of 17 global goals adopted by the United Nations in 2015 as a universal call to action to end poverty, protect the planet, and ensure peace and prosperity for all by 2030, according to the UNDP and the World Health Organization. The 17 SDGs are integrated; they recognize that action in one area will affect outcomes in others, and that development must balance social, economic and environmental sustainability. | I9: Company Name | J9: ='SDG Score Overview'!B14 -> End poverty in all its forms everywhere | K9: ='SDG Score Overview'!C14 -> End hunger, achieve food security and improved nutrition and promote sustainable agriculture | L9: ='SDG Score Overview'!D14 -> Ensure healthy lives and promote well-being for all at all ages | M9: ='SDG Score Overview'!E14 -> Ensure inclusive and equitable quality education and promote lifelong learning opportunities for all | N9: ='SDG Score Overview'!F14 -> Achieve gender equality and empower all women and girls
I10: ='SDG Score Overview'!A15 -> American Well Corp | J10: ='SDG Score Overview'!B15 -> 48.44285714 | K10: ='SDG Score Overview'!C15 -> 51.456 | L10: ='SDG Score Overview'!D15 -> 49.11333333 | M10: ='SDG Score Overview'!E15 -> 45.555 | N10: ='SDG Score Overview'!F15 -> 48.19166667
I11: Comparator Average | J11: ='SDG Score Overview'!B10 -> 54.62839286 | K11: ='SDG Score Overview'!C10 -> 57.060875 | L11: ='SDG Score Overview'!D10 -> 55.8975 | M11: ='SDG Score Overview'!E10 -> 54.1 | N11: ='SDG Score Overview'!F10 -> 54.91020833
I12: Materiality Test | J12: =IF(J10<J11*$J$7,"Below","Pass") -> Pass | K12: =IF(K10<K11*$J$7,"Below","Pass") -> Pass | L12: =IF(L10<L11*$J$7,"Below","Pass") -> Pass | M12: =IF(M10<M11*$J$7,"Below","Pass") -> Below | N12: =IF(N10<N11*$J$7,"Below","Pass") -> Pass
A14: 17 Areas of Focus Have Been Mapped to ESG Topics
A15: The SDG framework defines 17 priority areas for sustainable development, underpinned by a detailed set of targets and indicators for assessing progress. We have mapped the top 17 areas to the 12 sustainability-related topics that CSRHub rates. This mapping is shown on the SDG Mapping tab. | I15: Company Name | J15: ='SDG Score Overview'!G14 -> Ensure availability and sustainable management of water and sanitation for all | K15: ='SDG Score Overview'!H14 -> Ensure access to affordable, reliable, sustainable and modern energy for all | L15: ='SDG Score Overview'!I14 -> Promote sustained, inclusive and sustainable economic growth, full and productive employment and decent work for all | M15: ='SDG Score Overview'!J14 -> Build resilient infrastructure, promote inclusive and sustainable industrialization and foster innovation | N15: ='SDG Score Overview'!K14 -> Reduce inequality within and among countries
I16: ='SDG Score Overview'!A15 -> American Well Corp | J16: ='SDG Score Overview'!G15 -> 50.91 | K16: ='SDG Score Overview'!H15 -> 43.865 | L16: ='SDG Score Overview'!I15 -> 44.398 | M16: ='SDG Score Overview'!J15 -> 46.62875 | N16: ='SDG Score Overview'!K15 -> 48.47714286
I17: Comparator Average | J17: ='SDG Score Overview'!G10 -> 56.3421875 | K17: ='SDG Score Overview'!H10 -> 57.0909375 | L17: ='SDG Score Overview'!I10 -> 53.80925 | M17: ='SDG Score Overview'!J10 -> 57.40726563 | N17: ='SDG Score Overview'!K10 -> 54.78607143
I18: Materiality Test | J18: =IF(J16<J17*$J$7,"Below","Pass") -> Pass | K18: =IF(K16<K17*$J$7,"Below","Pass") -> Below | L18: =IF(L16<L17*$J$7,"Below","Pass") -> Below | M18: =IF(M16<M17*$J$7,"Below","Pass") -> Below | N18: =IF(N16<N17*$J$7,"Below","Pass") -> Pass
A20: The Enter Company Names Tab
A21: This tab is the starting point. It allows you search the names of the companies you wish to evaluate. Please enter in the date of data you are wanting to evaluate. You can verify the company name in column J. The instructions for matching the correct entity and date can be found in cells A4-A10. | I21: Company Name | J21: ='SDG Score Overview'!L14 -> Make cities and human settlements inclusive, safe, resilient and sustainable | K21: ='SDG Score Overview'!M14 -> Ensure sustainable consumption and production patterns | L21: ='SDG Score Overview'!N14 -> Take urgent action to combat climate change and its impacts | M21: ='SDG Score Overview'!O14 -> Conserve and sustainably use the oceans, seas and marine resources for sustainable development | N21: ='SDG Score Overview'!P14 -> Protect, restore and promote sustainable use of terrestrial ecosystems, sustainably manage forests, combat desertification, and halt and reverse land degradation and halt biodiversity loss
I22: ='SDG Score Overview'!A15 -> American Well Corp | J22: ='SDG Score Overview'!L15 -> 48.13666667 | K22: ='SDG Score Overview'!M15 -> 50.4375 | L22: ='SDG Score Overview'!N15 -> 46.16 | M22: ='SDG Score Overview'!O15 -> 50.2225 | N22: ='SDG Score Overview'!P15 -> 50.754
I23: Comparator Average | J23: ='SDG Score Overview'!L10 -> 56.83354167 | K23: ='SDG Score Overview'!M10 -> 58.26515625 | L23: ='SDG Score Overview'!N10 -> 56.63276786 | M23: ='SDG Score Overview'!O10 -> 57.9359375 | N23: ='SDG Score Overview'!P10 -> 57.29125
I24: Materiality Test | J24: =IF(J22<J23*$J$7,"Below","Pass") -> Below | K24: =IF(K22<K23*$J$7,"Below","Pass") -> Pass | L24: =IF(L22<L23*$J$7,"Below","Pass") -> Below | M24: =IF(M22<M23*$J$7,"Below","Pass") -> Pass | N24: =IF(N22<N23*$J$7,"Below","Pass") -> Pass
A26: The CSRHub Ratings Tab
A27: Confirm the date is correct and that it pulled from the Enter Company Names tab when you click "Calculate." The "focus company" is the top and the "comparators" are below it. The comparators average, best and worst ratings are listed at the top of the sheet. The focus company is excluded. | I27: Company Name | J27: ='SDG Score Overview'!Q14 -> Promote peaceful and inclusive societies for sustainable development, provide access to justice for all and build effective, accountable and inclusive institutions at all levels | K27: ='SDG Score Overview'!R14 -> Strengthen the means of implementation and revitalize the global partnership for sustainable development
I28: ='SDG Score Overview'!A15 -> American Well Corp | J28: ='SDG Score Overview'!Q15 -> 47.83166667 | K28: ='SDG Score Overview'!R15 -> 48.336
A29: The SDG Score Overview Tab | I29: Comparator Average | J29: ='SDG Score Overview'!Q10 -> 54.80708333 | K29: ='SDG Score Overview'!R10 -> 56.19075
A30: This tab contains an estimate of the relative performance for the studied companies across the 17 SDG focus areas. The "focus company" is the top and the "comparators" are below it. The average, best, and worst ratings numbers at the top of the sheet reference the comparators. The focus company is excluded. | I30: Materiality Test | J30: =IF(J28<J29*$J$7,"Below","Pass") -> Pass | K30: =IF(K28<K29*$J$7,"Below","Pass") -> Pass
A34: Set Your threshold for Materiality and Use the Tool
A35: To the right at the top of this page is a cell to "Customize your SDG Materiality Level" for this tool. If you want to test if the focus company is in line with the average for its comparators, set the threshold at 100%. If you would accept the focus company being a certain percent below the average for the SDGs, set the threshold at the desired percentage and click Calculate. To the right of these instructions, you will see a group of comparisons between the focus company and the average of the comparators. When the focus company fails to meet the threshold you set, you will see a flag that says "Below." When it meets the threshold, the flag will say "Pass."
A44: What to Do, Next?
A45: When the focus company appears likely to fail the materiality test for a particular SDG area, it should consider taking steps to rectify this issue.These steps could include:
A48: 1. Improve policies and practices in the area of concern.
A49: 2. Gather more data to allow better understanding of performance in the area.
A50: 3. Improve reporting to ratings groups and share relevant indicators.
A53: CSRHub's ratings are based on the views of hundreds of ratings groups. These groups typically rely on both formal and informal reporting from the entities they cover plus their own internal analysis techniques and models. If necessary, CSRHub can supply additional reports and tools to help improve reporting and strength an entity's engagement with rating sources.
A59: For more information on CSRHub’s methodology, please see this page on CSRHub’s web site.

Sheet Enter Company Names
R1: Controls for Fine Tuning Scope of Search
U2: Name | V2: Ticker | W2: URL | X2: ISIN
A3: Enter The Company Or Companies You Want To Study | N3: NA = Rating or information not available. This can also be due to a company with only partial ratings. We do not provide an overall score for partially rated companies. | R3: Set to include (I) or exclude (X) fully rated, partially rated and/or unrated companies from your search | T3: Fully Rated | U3: I | V3: I | W3: I | X3: I
A4: 1. Enter a company name, part of a company name, or a brand in column B, a ticker into column C, a web URL into column D, and/or an ISIN number into column E. | T4: Partially Rated | U4: I | V4: I | W4: I | X4: I
A5: 2. If the CSRHub name you want does not appear in column J, use the CSRHub name lookup tool (top menu, CSRHub…Company) to paste the right text company name into column J. | T5: Not Rated | U5: I | V5: I | W5: I | X5: I
A6: 3. The data in columns K to Q should help you double check that you have the right name match. The name in column J is the one used automatically on other sheets. | O6: Version: | P6: =CSRHubAPIVersionNumber() -> 3.3 | R6: Changes in the settings above will change the search parameter in cells F13-I13
A7: 4. If you need to lookup more than 30 companies, you can copy the formulas in row 44 down as far as you wish. | O7: Last Content Update: | P7: 2026-03-26
A8: 5. Use column A to store your internal identifier or version of the company name for later reference. You can change the scope of search using the box starting in column R. | O8: Last Code Update: | P8: =CSRHubAPIVersionDate() -> 2025-12-25 | S8: Month | T8: Year
A9: 6. Request a specific Month and Year of data, in cells S9 and T9. Choose Formulas from the top menu, then Calculate Sheet. This will allow our database to update the sheet. | O9: Includes MonetDB Mac Update | R9: Data Date | S9: February | T9: 2026
A10: 7. Enter your CSRHub site credentials (username/password) when directed.
A13: Top Line Summary | C13: =COUNT(N15:N212) & " Companies" -> 17 Companies | E13: Search scope parameters (see Column P) | F13: =IF(AND(U3="I",U4="I",U5="I"),"0",IF(AND(U3="I",U4="X",U5="X"),"1",IF(AND(U3="I",U4="I",U5="X"),"2",IF(AND(U3="X",U4="I",U5="X"),"3",IF(AND(U3="X",U4="X",U5="I"),"4",IF(AND(U3="X",U4="I",U5="I"),"5",IF(AND(U3="I",U4="X",U5="I"),"6","0"))))))) -> 0 | G13: =IF(AND(V3="I",V4="I",V5="I"),"0",IF(AND(V3="I",V4="X",V5="X"),"1",IF(AND(V3="I",V4="I",V5="X"),"2",IF(AND(V3="X",V4="I",V5="X"),"3",IF(AND(V3="X",V4="X",V5="I"),"4",IF(AND(V3="X",V4="I",V5="I"),"5",IF(AND(V3="I",V4="X",V5="I"),"6","0"))))))) -> 0 | H13: 0 | I13: 0 | J13: More instructions and examples are available online. | K13: Ways to Double Check the Name
A14: Internal ID (Optional) | B14: Enter Name | C14: Enter Ticker (No exchange code) | D14: Enter web URL | E14: Enter ISIN | F14: Simple Lookup (NA or blank = didn't work) | G14: Ticker Lookup (NA or blank = didn't work) | H14: URL Lookup (NA or blank = didn't work) | I14: ISIN Lookup (NA or blank = didn't work) | J14: Best Guess (replace using name lookup tool when NA) | K14: Country | L14: City | M14: Ticker | N14: # of Sources | O14: ISIN | P14: Industry | Q14: Overall Ratings
B15: American Well Corp | F15: =csrhubfindcompanyname($B15,0,F$13) -> American Well Corp | G15: =csrhubfindcompanyname($C15,3,G$13) -> NA | H15: =csrhubfindcompanyname($D15,5,H$13) -> NA | I15: =csrhubfindcompanyname($E15,4,I$13) -> NA | J15: =IF(I15="NA",IF(H15="NA",IF(F15="NA",IF(G15= "NA","NA",G15),F15),H15),I15) -> American Well Corp | K15: =csrhubcompanycountry(J15) -> USA | L15: =CSRHubCompanycity(J15) -> Boston | M15: =CSRHubCompanyTicker(J15) -> AMWL | N15: =CSRHubDScount(J15) -> 18 | O15: =csrhubcompanyisin(J15) -> US03044L1052 | P15: =CSRHubCompanyIndustry(J15) -> Healthcare Providers | Q15: =CSRHubRating(J15) -> 50.191
B16: Pernod Ricard | F16: =csrhubfindcompanyname($B16,0,F$13) -> Pernod Ricard | G16: NA | H16: NA | I16: NA | J16: Pernod Ricard | K16: =csrhubcompanycountry(J16) -> France | L16: =CSRHubCompanycity(J16) -> Paris | M16: =CSRHubCompanyTicker(J16) -> RI | N16: =CSRHubDScount(J16) -> 38 | O16: =csrhubcompanyisin(J16) -> FR0000120693 | P16: =CSRHubCompanyIndustry(J16) -> Beer, Wine, & Distilled Alcoholic Bev. Wholesalers | Q16: =CSRHubRating(J16) -> 59.7926
B17: FILA Fabbrica Italiana Lapis d Affni SpA | F17: FILA Fabbrica Italiana Lapis d Affni SpA | G17: NA | H17: NA | I17: NA | J17: FILA Fabbrica Italiana Lapis d Affni SpA | K17: =csrhubcompanycountry(J17) -> Italy | L17: Milan | M17: FILA | N17: 25 | O17: IT0004967292 | P17: Paper Products | Q17: 53.6901
B18: Coty Inc. | F18: Coty Inc. | G18: NA | H18: NA | I18: NA | J18: Coty Inc. | K18: USA | L18: New York City | M18: COTY | N18: 44 | O18: US2220702037 | P18: Luxury Goods & Cosmetics Manufacturing | Q18: 58.3837
B19: Barnes & Noble, Inc. | F19: Barnes & Noble, Inc. | G19: NA | H19: NA | I19: NA | J19: Barnes & Noble, Inc. | K19: USA | L19: New York City | M19: BKS | N19: 4 | O19: US0677741094 | P19: Wholesale Trade | Q19: 46.3272
B20: 3M Company | F20: 3M Company | G20: NA | H20: NA | I20: NA | J20: 3M Company | K20: USA | L20: Saint Paul | M20: MMM | N20: 76 | O20: US88579Y1010 | P20: Manufacturing | Q20: 56.7933
B21: Newell Rubbermaid Inc. | F21: Newell Rubbermaid Inc. | G21: NA | H21: =csrhubfindcompanyname($D21,5,H$13) -> NA | I21: NA | J21: =IF(I21="NA",IF(H21="NA",IF(F21="NA",IF(G21= "NA","NA",G21),F21),H21),I21) -> Newell Rubbermaid Inc. | K21: USA | L21: Atlanta | M21: NWL | N21: 36 | O21: US6512291062 | P21: Household Products | Q21: 56.2086
B22: Procter & Gamble Company | F22: Procter & Gamble Company | G22: NA | H22: =csrhubfindcompanyname($D22,5,H$13) -> NA | I22: NA | J22: =IF(I22="NA",IF(H22="NA",IF(F22="NA",IF(G22= "NA","NA",G22),F22),H22),I22) -> Procter & Gamble Company | K22: USA | L22: Cincinnati | M22: PG | N22: 89 | O22: US7427181091 | P22: Manufacturing | Q22: 60.948
B23: Unilever PLC | F23: Unilever PLC | G23: NA | H23: NA | I23: NA | J23: Unilever PLC | K23: United Kingdom | L23: London | M23: ULVR | N23: 75 | O23: GB00B10RZP78 | P23: Household Products | Q23: 63.3939
B24: Church & Dwight Co., Inc. | F24: Church & Dwight Co., Inc. | G24: NA | H24: NA | I24: NA | J24: Church & Dwight Co., Inc. | K24: USA | L24: Princeton | M24: CHD | N24: 48 | O24: US1713401024 | P24: Chemicals, Plastics & Rubber Products Mfg. | Q24: 58.6411
B25: Edgewell Personal Care Company | F25: Edgewell Personal Care Company | G25: NA | H25: NA | I25: NA | J25: Edgewell Personal Care Company | K25: USA | L25: St. Louis | M25: EPC | N25: 31 | O25: US28035Q1022 | P25: Luxury Goods & Cosmetics Manufacturing | Q25: 57.3364
B26: BIC | F26: BIC | G26: NA | H26: NA | I26: NA | J26: BIC | K26: France | L26: Clichy | M26: BB | N26: 30 | O26: FR0000120966 | P26: Manufacturing | Q26: 60.8323
B27: Johnson & Johnson | F27: Johnson & Johnson | G27: NA | H27: NA | I27: NA | J27: Johnson & Johnson | K27: USA | L27: New Brunswick | M27: JNJ | N27: 85 | O27: US4781601046 | P27: Medical Equipment & Supplies Manufacturing | Q27: 61.8837
B28: Amazon.com, Inc. | F28: Amazon.com, Inc. | G28: NA | H28: NA | I28: NA | J28: Amazon.com, Inc. | K28: USA | L28: Seattle | M28: AMZN | N28: 83 | O28: US0231351067 | P28: Electronic Shopping and Mail-Order Houses | Q28: 51.5224
B29: Groupe Danone | F29: Groupe Danone | G29: NA | H29: NA | I29: NA | J29: Groupe Danone | K29: France | L29: Paris | M29: BN | N29: 63 | O29: FR0000120644 | P29: Food Products | Q29: 64.4258
B30: Walmart Inc. | F30: Walmart Inc. | G30: NA | H30: NA | I30: NA | J30: Walmart Inc. | K30: USA | L30: Bentonville | M30: WMT | N30: 87 | O30: US9311421039 | P30: Retail | Q30: 57.2734
B31: Carrefour | F31: Carrefour | G31: NA | H31: NA | I31: NA | J31: Carrefour | K31: France | L31: Levallois-Perret | M31: CA | N31: 48 | O31: FR0000120172 | P31: Supermarket, Food & Beverage Stores | Q31: 60.4923
F32: NA | G32: NA | H32: NA | I32: NA | J32: NA | N32: NA | P32: NA | Q32: NA
F33: NA | G33: NA | H33: NA | I33: NA | J33: NA | N33: NA | P33: NA | Q33: NA
F34: NA | G34: NA | H34: NA | I34: NA | J34: NA | N34: NA | P34: NA | Q34: NA
F35: NA | G35: NA | H35: NA | I35: NA | J35: NA | N35: NA | P35: NA | Q35: NA
F36: NA | G36: NA | H36: NA | I36: NA | J36: NA | N36: NA | P36: NA | Q36: NA
F37: NA | G37: NA | H37: NA | I37: NA | J37: NA | N37: NA | P37: NA | Q37: NA
F38: NA | G38: NA | H38: NA | I38: NA | J38: NA | N38: NA | P38: NA | Q38: NA
F39: NA | G39: NA | H39: NA | I39: NA | J39: NA | N39: NA | P39: NA | Q39: NA
F40: NA | G40: NA | H40: NA | I40: NA | J40: NA | N40: NA | P40: NA | Q40: NA
F41: NA | G41: NA | H41: NA | I41: NA | J41: NA | N41: NA | P41: NA | Q41: NA
F42: NA | G42: NA | H42: NA | I42: NA | J42: NA | N42: NA | P42: NA | Q42: NA
F43: NA | G43: NA | H43: NA | I43: NA | J43: NA | N43: NA | P43: NA | Q43: NA
F44: NA | G44: NA | H44: NA | I44: NA | J44: NA | N44: NA | P44: NA | Q44: NA

Sheet CSRHub Ratings
A3: Instructions for SDG Calculator (Continued)
A4: 1. The company names will pull from Enter Names sheet. Verify date is correct when you click Calculate.
A5: 2. Clear out any old ratings numbers (cell B15 to M15 and down). When prompted, click "No" to not delete query.
A6: 3. Go to CSRHub menu and choose third button (Rebuild Data on This Sheet). Then do another Excel calculation to update averages.
B10: Average Rating | C10: =AVERAGEIF(C16:C211,"<>NA") -> 55.62 | D10: =AVERAGEIF(D16:D211,"<>NA") -> 58.61875 | E10: 55.145 | F10: 53.078125 | G10: 53.8725 | H10: 53.45375 | I10: 57.11125 | J10: 58.52125 | K10: 57.301875 | L10: 55.929375 | M10: 54.7125 | N10: 54.5225
B11: Best Rating | C11: =MAX(C16:C211) -> 61.78 | D11: =MAX(D16:D211) -> 65.85 | E11: 63.59 | F11: 59.39 | G11: 62.67 | H11: 61.17 | I11: 63.64 | J11: 68.44 | K11: 65.93 | L11: 60.84 | M11: 60.01 | N11: 59.44
B12: Worst Rating | C12: =MIN(C16:C211) -> 48.03 | D12: =MIN(D16:D211) -> 42.21 | E12: 42.2 | F12: 39.88 | G12: 40.94 | H12: 36.99 | I12: 39.54 | J12: 40.46 | K12: 40.89 | L12: 40.6 | M12: 40.94 | N12: 38.59
A14: PUT YOUR INTERNAL COMPANY IDENTIFIER HERE | B14: PUT COMPANY NAME OR TICKER HERE | C14: ="Community Dev & Philanthropy Rating (" & 'Enter Company Names'!$S$9 & " " & 'Enter Company Names'!$T$9 & ")" -> Community Dev & Philanthropy Rating (February 2026) | D14: ="Human Rights & Supply Chain Rating (" & 'Enter Company Names'!$S$9 & " " & 'Enter Company Names'!$T$9 & ")" -> Human Rights & Supply Chain Rating (February 2026) | E14: ="Product Rating (" & 'Enter Company Names'!$S$9 & " " & 'Enter Company Names'!$T$9 & ")" -> Product Rating (February 2026) | F14: ="Compensation & Benefits Rating (" & 'Enter Company Names'!$S$9 & " " & 'Enter Company Names'!$T$9 & ")" -> Compensation & Benefits Rating (February 2026) | G14: ="Diversity & Labor Rights Rating (" & 'Enter Company Names'!$S$9 & " " & 'Enter Company Names'!$T$9 & ")" -> Diversity & Labor Rights Rating (February 2026) | H14: ="Training, Health & Safety Rating (" & 'Enter Company Names'!$S$9 & " " & 'Enter Company Names'!$T$9 & ")" -> Training, Health & Safety Rating (February 2026) | I14: ="Energy & Climate Change Rating (" & 'Enter Company Names'!$S$9 & " " & 'Enter Company Names'!$T$9 & ")" -> Energy & Climate Change Rating (February 2026) | J14: ="Environment Policy & Reporting Rating (" & 'Enter Company Names'!$S$9 & " " & 'Enter Company Names'!$T$9 & ")" -> Environment Policy & Reporting Rating (February 2026) | K14: ="Resource Management Rating (" & 'Enter Company Names'!$S$9 & " " & 'Enter Company Names'!$T$9 & ")" -> Resource Management Rating (February 2026) | L14: ="Board Rating (" & 'Enter Company Names'!$S$9 & " " & 'Enter Company Names'!$T$9 & ")" -> Board Rating (February 2026) | M14: ="Leadership Ethics Rating (" & 'Enter Company Names'!$S$9 & " " & 'Enter Company Names'!$T$9 & ")" -> Leadership Ethics Rating (February 2026) | N14: ="Transparency & Reporting Rating (" & 'Enter Company Names'!$S$9 & " " & 'Enter Company Names'!$T$9 & ")" -> Transparency & Reporting Rating (February 2026)
B15: ='Enter Company Names'!J15 -> American Well Corp | C15: 49.37 | D15: 52.78 | E15: 50.43 | F15: 43.31 | G15: 42.47 | H15: 45.19 | I15: 40.91 | J15: 44.27 | K15: 51.92 | L15: 50.45 | M15: 52.88 | N15: 49.43
B16: ='Enter Company Names'!J16 -> Pernod Ricard | C16: 60.06 | D16: 65.27 | E16: 63.59 | F16: 54.32 | G16: 59.16 | H16: 56.62 | I16: 59.98 | J16: 65.23 | K16: 65.53 | L16: 53.92 | M16: 53.96 | N16: 52.09
B17: ='Enter Company Names'!J17 -> FILA Fabbrica Italiana Lapis d Affni SpA | C17: 50.65 | D17: 56.88 | E17: 56.32 | F17: 46 | G17: 48.57 | H17: 49.03 | I17: 50.45 | J17: 55.49 | K17: 53.35 | L17: 55.31 | M17: 54.98 | N17: 55.43
B18: ='Enter Company Names'!J18 -> Coty Inc. | C18: 55.3 | D18: 59.82 | E18: 57.8 | F18: 50.86 | G18: 54.1 | H18: 54.56 | I18: 62.23 | J18: 63.69 | K18: 59.75 | L18: 55.91 | M18: 59.08 | N18: 54.73
B19: ='Enter Company Names'!J19 -> Barnes & Noble, Inc. | C19: 48.03 | D19: 42.21 | E19: 42.2 | F19: 39.88 | G19: 40.94 | H19: 36.99 | I19: 39.54 | J19: 40.46 | K19: 40.89 | L19: 40.6 | M19: 40.94 | N19: 38.59
B20: ='Enter Company Names'!J20 -> 3M Company | C20: 55.65 | D20: 60.42 | E20: 44.98 | F20: 54.86 | G20: 54.33 | H20: 50.76 | I20: 59.73 | J20: 54.94 | K20: 47.94 | L20: 60.04 | M20: 55.33 | N20: 58.39
B21: ='Enter Company Names'!J21 -> Newell Rubbermaid Inc. | C21: 50.68 | D21: 56.19 | E21: 52.41 | F21: 48.75 | G21: 49.22 | H21: 49.29 | I21: 52.11 | J21: 50.33 | K21: 49.18 | L21: 59.05 | M21: 56.74 | N21: 54.53
B22: ='Enter Company Names'!J22 -> Procter & Gamble Company | C22: 57.06 | D22: 58.38 | E22: 56.38 | F22: 58.86 | G22: 58.3 | H22: 56.62 | I22: 60.08 | J22: 63.78 | K22: 62.96 | L22: 59.27 | M22: 56.45 | N22: 57.75
B23: ='Enter Company Names'!J23 -> Unilever PLC | C23: 58.49 | D23: 61.64 | E23: 61.54 | F23: 58.02 | G23: 57.61 | H23: 61.17 | I23: 63.64 | J23: 64.66 | K23: 63.94 | L23: 59.58 | M23: 55.15 | N23: 57.58
B24: ='Enter Company Names'!J24 -> Church & Dwight Co., Inc. | C24: 53.56 | D24: 58.55 | E24: 59.23 | F24: 48.18 | G24: 48.37 | H24: 51.46 | I24: 57.45 | J24: 62.92 | K24: 63.98 | L24: 49.96 | M24: 54.36 | N24: 52.99
B25: ='Enter Company Names'!J25 -> Edgewell Personal Care Company | C25: 52.51 | D25: 56.26 | E25: 52.48 | F25: 50.4 | G25: 49.15 | H25: 54.54 | I25: 55.96 | J25: 56.72 | K25: 54.74 | L25: 56.03 | M25: 54.35 | N25: 53.42
B26: ='Enter Company Names'!J26 -> BIC | C26: 59.86 | D26: 60.68 | E26: 56.31 | F26: 57.87 | G26: 61.34 | H26: 61.03 | I26: 57.83 | J26: 59.51 | K26: 53.85 | L26: 55.35 | M26: 58.2 | N26: 55.65
B27: ='Enter Company Names'!J27 -> Johnson & Johnson | C27: 61.78 | D27: 64.08 | E27: 55.89 | F27: 58.19 | G27: 58.53 | H27: 58.94 | I27: 62.61 | J27: 62.88 | K27: 62.99 | L27: 60.84 | M27: 56.35 | N27: 58.88
B28: ='Enter Company Names'!J28 -> Amazon.com, Inc. | C28: 52.4 | D28: 51.6 | E28: 49.25 | F28: 51.4 | G28: 49.2 | H28: 48.86 | I28: 52.68 | J28: 50.19 | K28: 48.78 | L28: 55.19 | M28: 50.65 | N28: 53.37
B29: ='Enter Company Names'!J29 -> Groupe Danone | C29: 61.6 | D29: 65.85 | E29: 59.68 | F29: 59.39 | G29: 62.67 | H29: 58.68 | I29: 63.54 | J29: 68.44 | K29: 65.93 | L29: 60.69 | M29: 60.01 | N29: 59.44
B30: ='Enter Company Names'!J30 -> Walmart Inc. | C30: 53.46 | D30: 56.77 | E30: 54.5 | F30: 52.97 | G30: 49.92 | H30: 50.27 | I30: 57.64 | J30: 55.13 | K30: 59.92 | L30: 56.54 | M30: 52.63 | N30: 55.02
B31: ='Enter Company Names'!J31 -> Carrefour | C31: 58.83 | D31: 63.3 | E31: 59.76 | F31: 59.3 | G31: 60.55 | H31: 56.44 | I31: 58.31 | J31: 61.97 | K31: 63.1 | L31: 56.59 | M31: 56.22 | N31: 54.5

Sheet SDG Score Overview
A4: Instructions for SDG Calculator (Continued)
A5: 1. The company names will pull from Enter Company Names sheet.
A6: 2. Click "Calculate" to update CSRHub scores applied to SDG topics.
A9: ="For "&A15&"" -> For American Well Corp | B9: =B14 -> End poverty in all its forms everywhere | C9: =C14 -> End hunger, achieve food security and improved nutrition and promote sustainable agriculture | D9: Ensure healthy lives and promote well-being for all at all ages | E9: Ensure inclusive and equitable quality education and promote lifelong learning opportunities for all | F9: Achieve gender equality and empower all women and girls | G9: Ensure availability and sustainable management of water and sanitation for all | H9: Ensure access to affordable, reliable, sustainable and modern energy for all | I9: Promote sustained, inclusive and sustainable economic growth, full and productive employment and decent work for all | J9: Build resilient infrastructure, promote inclusive and sustainable industrialization and foster innovation | K9: Reduce inequality within and among countries | L9: Make cities and human settlements inclusive, safe, resilient and sustainable | M9: Ensure sustainable consumption and production patterns | N9: Take urgent action to combat climate change and its impacts | O9: Conserve and sustainably use the oceans, seas and marine resources for sustainable development | P9: Protect, restore and promote sustainable use of terrestrial ecosystems, sustainably manage forests, combat desertification, and halt and reverse land degradation and halt biodiversity loss | Q9: Promote peaceful and inclusive societies for sustainable development, provide access to justice for all and build effective, accountable and inclusive institutions at all levels | R9: Strengthen the means of implementation and revitalize the global partnership for sustainable development
A10: Average Rating | B10: =AVERAGEIF(B16:B217,"<>0") -> 54.62839286 | C10: =AVERAGEIF(C16:C217,"<>0") -> 57.060875 | D10: 55.8975 | E10: 54.1 | F10: 54.91020833 | G10: 56.3421875 | H10: 57.0909375 | I10: 53.80925 | J10: 57.40726563 | K10: 54.78607143 | L10: 56.83354167 | M10: 58.26515625 | N10: 56.63276786 | O10: 57.9359375 | P10: 57.29125 | Q10: 54.80708333 | R10: 56.19075
A11: Best Rating | B11: =MAX(B16:B217) -> 60.19285714 | C11: =MAX(C16:C217) -> 63.944 | D11: 62.04333333 | E11: 60.815 | F11: 61.06833333 | G11: 63.6775 | H11: 64.28 | I11: 60.76 | J11: 65.03375 | K11: 60.53142857 | L11: 64.18666667 | M11: 66.5175 | N11: 63.44285714 | O11: 66.5375 | P11: 65.232 | Q11: 61.37166667 | R11: 62.721
A12: Worst Rating | B12: =MIN(B16:B217) -> 43.02285714 | C12: =MIN(C16:C217) -> 43.108 | D12: 42.41 | E12: 40.7375 | F12: 41.03666667 | G12: 43.0025 | H12: 41.8925 | I12: 40.768 | J12: 40.2875 | K12: 42.11285714 | L12: 42.00166667 | M12: 41.4425 | N12: 40.01857143 | O12: 41.1125 | P12: 41.078 | Q12: 43.51333333 | R12: 41.03
A14: Company Name | B14: ='SDG Mapping'!B15 -> End poverty in all its forms everywhere | C14: ='SDG Mapping'!B16 -> End hunger, achieve food security and improved nutrition and promote sustainable agriculture | D14: ='SDG Mapping'!B17 -> Ensure healthy lives and promote well-being for all at all ages | E14: ='SDG Mapping'!$B18 -> Ensure inclusive and equitable quality education and promote lifelong learning opportunities for all | F14: ='SDG Mapping'!$B19 -> Achieve gender equality and empower all women and girls | G14: ='SDG Mapping'!$B20 -> Ensure availability and sustainable management of water and sanitation for all | H14: ='SDG Mapping'!$B21 -> Ensure access to affordable, reliable, sustainable and modern energy for all | I14: ='SDG Mapping'!$B22 -> Promote sustained, inclusive and sustainable economic growth, full and productive employment and decent work for all | J14: ='SDG Mapping'!$B23 -> Build resilient infrastructure, promote inclusive and sustainable industrialization and foster innovation | K14: ='SDG Mapping'!$B24 -> Reduce inequality within and among countries | L14: ='SDG Mapping'!$B25 -> Make cities and human settlements inclusive, safe, resilient and sustainable | M14: ='SDG Mapping'!$B26 -> Ensure sustainable consumption and production patterns | N14: ='SDG Mapping'!$B27 -> Take urgent action to combat climate change and its impacts | O14: ='SDG Mapping'!$B28 -> Conserve and sustainably use the oceans, seas and marine resources for sustainable development | P14: ='SDG Mapping'!$B29 -> Protect, restore and promote sustainable use of terrestrial ecosystems, sustainably manage forests, combat desertification, and halt and reverse land degradation and halt biodiversity loss | Q14: ='SDG Mapping'!$B30 -> Promote peaceful and inclusive societies for sustainable development, provide access to justice for all and build effective, accountable and inclusive institutions at all levels | R14: ='SDG Mapping'!$B31 -> Strengthen the means of implementation and revitalize the global partnership for sustainable development
A15: ='CSRHub Ratings'!B15 -> American Well Corp | B15: =SUMPRODUCT('CSRHub Ratings'!$C15:$N15,'SDG Mapping'!$C$15:$N$15) -> 48.44285714 | C15: =SUMPRODUCT('CSRHub Ratings'!$C15:$N15,'SDG Mapping'!$C$16:$N$16) -> 51.456 | D15: =SUMPRODUCT('CSRHub Ratings'!$C15:$N15,'SDG Mapping'!$C$17:$N$17) -> 49.11333333 | E15: =SUMPRODUCT('CSRHub Ratings'!$C15:$N15,'SDG Mapping'!$C$18:$N$18) -> 45.555 | F15: =SUMPRODUCT('CSRHub Ratings'!$C15:$N15,'SDG Mapping'!$C$19:$N$19) -> 48.19166667 | G15: =SUMPRODUCT('CSRHub Ratings'!$C15:$N15,'SDG Mapping'!$C$20:$N$20) -> 50.91 | H15: =SUMPRODUCT('CSRHub Ratings'!$C15:$N15,'SDG Mapping'!$C$21:$N$21) -> 43.865 | I15: =SUMPRODUCT('CSRHub Ratings'!$C15:$N15,'SDG Mapping'!$C$22:$N$22) -> 44.398 | J15: =SUMPRODUCT('CSRHub Ratings'!$C15:$N15,'SDG Mapping'!$C$23:$N$23) -> 46.62875 | K15: =SUMPRODUCT('CSRHub Ratings'!$C15:$N15,'SDG Mapping'!$C$24:$N$24) -> 48.47714286 | L15: =SUMPRODUCT('CSRHub Ratings'!$C15:$N15,'SDG Mapping'!$C$25:$N$25) -> 48.13666667 | M15: =SUMPRODUCT('CSRHub Ratings'!$C15:$N15,'SDG Mapping'!$C$26:$N$26) -> 50.4375 | N15: =SUMPRODUCT('CSRHub Ratings'!$C15:$N15,'SDG Mapping'!$C$27:$N$27) -> 46.16 | O15: =SUMPRODUCT('CSRHub Ratings'!$C15:$N15,'SDG Mapping'!$C$28:$N$28) -> 50.2225 | P15: =SUMPRODUCT('CSRHub Ratings'!$C15:$N15,'SDG Mapping'!$C$29:$N$29) -> 50.754 | Q15: =SUMPRODUCT('CSRHub Ratings'!$C15:$N15,'SDG Mapping'!$C$30:$N$30) -> 47.83166667 | R15: =SUMPRODUCT('CSRHub Ratings'!$C15:$N15,'SDG Mapping'!$C$31:$N$31) -> 48.336
A16: ='CSRHub Ratings'!B16 -> Pernod Ricard | B16: =SUMPRODUCT('CSRHub Ratings'!$C16:$N16,'SDG Mapping'!$C$15:$N$15) -> 58.55714286 | C16: =SUMPRODUCT('CSRHub Ratings'!$C16:$N16,'SDG Mapping'!$C$16:$N$16) -> 63.944 | D16: =SUMPRODUCT('CSRHub Ratings'!$C16:$N16,'SDG Mapping'!$C$17:$N$17) -> 60.65 | E16: =SUMPRODUCT('CSRHub Ratings'!$C16:$N16,'SDG Mapping'!$C$18:$N$18) -> 58.115 | F16: =SUMPRODUCT('CSRHub Ratings'!$C16:$N16,'SDG Mapping'!$C$19:$N$19) -> 57.285 | G16: =SUMPRODUCT('CSRHub Ratings'!$C16:$N16,'SDG Mapping'!$C$20:$N$20) -> 63.6775 | H16: =SUMPRODUCT('CSRHub Ratings'!$C16:$N16,'SDG Mapping'!$C$21:$N$21) -> 61.3125 | I16: =SUMPRODUCT('CSRHub Ratings'!$C16:$N16,'SDG Mapping'!$C$22:$N$22) -> 58.11 | J16: =SUMPRODUCT('CSRHub Ratings'!$C16:$N16,'SDG Mapping'!$C$23:$N$23) -> 62.88875 | K16: =SUMPRODUCT('CSRHub Ratings'!$C16:$N16,'SDG Mapping'!$C$24:$N$24) -> 58.37142857 | L16: =SUMPRODUCT('CSRHub Ratings'!$C16:$N16,'SDG Mapping'!$C$25:$N$25) -> 63.32 | M16: =SUMPRODUCT('CSRHub Ratings'!$C16:$N16,'SDG Mapping'!$C$26:$N$26) -> 65.325 | N16: =SUMPRODUCT('CSRHub Ratings'!$C16:$N16,'SDG Mapping'!$C$27:$N$27) -> 58.62714286 | O16: =SUMPRODUCT('CSRHub Ratings'!$C16:$N16,'SDG Mapping'!$C$28:$N$28) -> 65.39 | P16: =SUMPRODUCT('CSRHub Ratings'!$C16:$N16,'SDG Mapping'!$C$29:$N$29) -> 63.104 | Q16: =SUMPRODUCT('CSRHub Ratings'!$C16:$N16,'SDG Mapping'!$C$30:$N$30) -> 59.33166667 | R16: =SUMPRODUCT('CSRHub Ratings'!$C16:$N16,'SDG Mapping'!$C$31:$N$31) -> 59.168
A17: ='CSRHub Ratings'!B17 -> FILA Fabbrica Italiana Lapis d Affni SpA | B17: =SUMPRODUCT('CSRHub Ratings'!$C17:$N17,'SDG Mapping'!$C$15:$N$15) -> 51.56 | C17: =SUMPRODUCT('CSRHub Ratings'!$C17:$N17,'SDG Mapping'!$C$16:$N$16) -> 54.816 | D17: =SUMPRODUCT('CSRHub Ratings'!$C17:$N17,'SDG Mapping'!$C$17:$N$17) -> 52.18666667 | E17: =SUMPRODUCT('CSRHub Ratings'!$C17:$N17,'SDG Mapping'!$C$18:$N$18) -> 49.32 | F17: =SUMPRODUCT('CSRHub Ratings'!$C17:$N17,'SDG Mapping'!$C$19:$N$19) -> 53.17666667 | G17: =SUMPRODUCT('CSRHub Ratings'!$C17:$N17,'SDG Mapping'!$C$20:$N$20) -> 53.4175 | H17: =SUMPRODUCT('CSRHub Ratings'!$C17:$N17,'SDG Mapping'!$C$21:$N$21) -> 51.76 | I17: =SUMPRODUCT('CSRHub Ratings'!$C17:$N17,'SDG Mapping'!$C$22:$N$22) -> 49.092 | J17: =SUMPRODUCT('CSRHub Ratings'!$C17:$N17,'SDG Mapping'!$C$23:$N$23) -> 53.5025 | K17: =SUMPRODUCT('CSRHub Ratings'!$C17:$N17,'SDG Mapping'!$C$24:$N$24) -> 52.59285714 | L17: =SUMPRODUCT('CSRHub Ratings'!$C17:$N17,'SDG Mapping'!$C$25:$N$25) -> 53.26833333 | M17: =SUMPRODUCT('CSRHub Ratings'!$C17:$N17,'SDG Mapping'!$C$26:$N$26) -> 55.65 | N17: =SUMPRODUCT('CSRHub Ratings'!$C17:$N17,'SDG Mapping'!$C$27:$N$27) -> 53.94285714 | O17: =SUMPRODUCT('CSRHub Ratings'!$C17:$N17,'SDG Mapping'!$C$28:$N$28) -> 54.7675 | P17: =SUMPRODUCT('CSRHub Ratings'!$C17:$N17,'SDG Mapping'!$C$29:$N$29) -> 54.81 | Q17: =SUMPRODUCT('CSRHub Ratings'!$C17:$N17,'SDG Mapping'!$C$30:$N$30) -> 51.62333333 | R17: =SUMPRODUCT('CSRHub Ratings'!$C17:$N17,'SDG Mapping'!$C$31:$N$31) -> 54.29
A18: ='CSRHub Ratings'!B18 -> Coty Inc. | B18: =SUMPRODUCT('CSRHub Ratings'!$C18:$N18,'SDG Mapping'!$C$15:$N$15) -> 55.28571429 | C18: =SUMPRODUCT('CSRHub Ratings'!$C18:$N18,'SDG Mapping'!$C$16:$N$16) -> 58.498 | D18: =SUMPRODUCT('CSRHub Ratings'!$C18:$N18,'SDG Mapping'!$C$17:$N$17) -> 56.56 | E18: =SUMPRODUCT('CSRHub Ratings'!$C18:$N18,'SDG Mapping'!$C$18:$N$18) -> 54.63 | F18: =SUMPRODUCT('CSRHub Ratings'!$C18:$N18,'SDG Mapping'!$C$19:$N$19) -> 56.15 | G18: =SUMPRODUCT('CSRHub Ratings'!$C18:$N18,'SDG Mapping'!$C$20:$N$20) -> 58.15 | H18: =SUMPRODUCT('CSRHub Ratings'!$C18:$N18,'SDG Mapping'!$C$21:$N$21) -> 60.8625 | I18: =SUMPRODUCT('CSRHub Ratings'!$C18:$N18,'SDG Mapping'!$C$22:$N$22) -> 53.544 | J18: =SUMPRODUCT('CSRHub Ratings'!$C18:$N18,'SDG Mapping'!$C$23:$N$23) -> 60.72375 | K18: =SUMPRODUCT('CSRHub Ratings'!$C18:$N18,'SDG Mapping'!$C$24:$N$24) -> 55.83571429 | L18: =SUMPRODUCT('CSRHub Ratings'!$C18:$N18,'SDG Mapping'!$C$25:$N$25) -> 59.75333333 | M18: =SUMPRODUCT('CSRHub Ratings'!$C18:$N18,'SDG Mapping'!$C$26:$N$26) -> 60.77 | N18: =SUMPRODUCT('CSRHub Ratings'!$C18:$N18,'SDG Mapping'!$C$27:$N$27) -> 60.22285714 | O18: =SUMPRODUCT('CSRHub Ratings'!$C18:$N18,'SDG Mapping'!$C$28:$N$28) -> 60.7525 | P18: =SUMPRODUCT('CSRHub Ratings'!$C18:$N18,'SDG Mapping'!$C$29:$N$29) -> 60.418 | Q18: =SUMPRODUCT('CSRHub Ratings'!$C18:$N18,'SDG Mapping'!$C$30:$N$30) -> 55.94666667 | R18: =SUMPRODUCT('CSRHub Ratings'!$C18:$N18,'SDG Mapping'!$C$31:$N$31) -> 58.691
A19: ='CSRHub Ratings'!B19 -> Barnes & Noble, Inc. | B19: =SUMPRODUCT('CSRHub Ratings'!$C19:$N19,'SDG Mapping'!$C$15:$N$15) -> 43.02285714 | C19: =SUMPRODUCT('CSRHub Ratings'!$C19:$N19,'SDG Mapping'!$C$16:$N$16) -> 43.108 | D19: =SUMPRODUCT('CSRHub Ratings'!$C19:$N19,'SDG Mapping'!$C$17:$N$17) -> 42.41 | E19: =SUMPRODUCT('CSRHub Ratings'!$C19:$N19,'SDG Mapping'!$C$18:$N$18) -> 40.7375 | F19: =SUMPRODUCT('CSRHub Ratings'!$C19:$N19,'SDG Mapping'!$C$19:$N$19) -> 41.03666667 | G19: =SUMPRODUCT('CSRHub Ratings'!$C19:$N19,'SDG Mapping'!$C$20:$N$20) -> 43.0025 | H19: =SUMPRODUCT('CSRHub Ratings'!$C19:$N19,'SDG Mapping'!$C$21:$N$21) -> 41.8925 | I19: =SUMPRODUCT('CSRHub Ratings'!$C19:$N19,'SDG Mapping'!$C$22:$N$22) -> 40.768 | J19: =SUMPRODUCT('CSRHub Ratings'!$C19:$N19,'SDG Mapping'!$C$23:$N$23) -> 40.2875 | K19: =SUMPRODUCT('CSRHub Ratings'!$C19:$N19,'SDG Mapping'!$C$24:$N$24) -> 42.11285714 | L19: =SUMPRODUCT('CSRHub Ratings'!$C19:$N19,'SDG Mapping'!$C$25:$N$25) -> 42.00166667 | M19: =SUMPRODUCT('CSRHub Ratings'!$C19:$N19,'SDG Mapping'!$C$26:$N$26) -> 41.4425 | N19: =SUMPRODUCT('CSRHub Ratings'!$C19:$N19,'SDG Mapping'!$C$27:$N$27) -> 40.01857143 | O19: =SUMPRODUCT('CSRHub Ratings'!$C19:$N19,'SDG Mapping'!$C$28:$N$28) -> 41.1125 | P19: =SUMPRODUCT('CSRHub Ratings'!$C19:$N19,'SDG Mapping'!$C$29:$N$29) -> 41.078 | Q19: =SUMPRODUCT('CSRHub Ratings'!$C19:$N19,'SDG Mapping'!$C$30:$N$30) -> 43.51333333 | R19: =SUMPRODUCT('CSRHub Ratings'!$C19:$N19,'SDG Mapping'!$C$31:$N$31) -> 41.03
A20: ='CSRHub Ratings'!B20 -> 3M Company | B20: =SUMPRODUCT('CSRHub Ratings'!$C20:$N20,'SDG Mapping'!$C$15:$N$15) -> 52.33 | C20: =SUMPRODUCT('CSRHub Ratings'!$C20:$N20,'SDG Mapping'!$C$16:$N$16) -> 53.882 | D20: =SUMPRODUCT('CSRHub Ratings'!$C20:$N20,'SDG Mapping'!$C$17:$N$17) -> 55.61 | E20: =SUMPRODUCT('CSRHub Ratings'!$C20:$N20,'SDG Mapping'!$C$18:$N$18) -> 52.875 | F20: =SUMPRODUCT('CSRHub Ratings'!$C20:$N20,'SDG Mapping'!$C$19:$N$19) -> 54.84166667 | G20: =SUMPRODUCT('CSRHub Ratings'!$C20:$N20,'SDG Mapping'!$C$20:$N$20) -> 49.1275 | H20: =SUMPRODUCT('CSRHub Ratings'!$C20:$N20,'SDG Mapping'!$C$21:$N$21) -> 57.5125 | I20: =SUMPRODUCT('CSRHub Ratings'!$C20:$N20,'SDG Mapping'!$C$22:$N$22) -> 52.672 | J20: =SUMPRODUCT('CSRHub Ratings'!$C20:$N20,'SDG Mapping'!$C$23:$N$23) -> 56.11 | K20: =SUMPRODUCT('CSRHub Ratings'!$C20:$N20,'SDG Mapping'!$C$24:$N$24) -> 52.88142857 | L20: =SUMPRODUCT('CSRHub Ratings'!$C20:$N20,'SDG Mapping'!$C$25:$N$25) -> 51.86333333 | M20: =SUMPRODUCT('CSRHub Ratings'!$C20:$N20,'SDG Mapping'!$C$26:$N$26) -> 55.93 | N20: =SUMPRODUCT('CSRHub Ratings'!$C20:$N20,'SDG Mapping'!$C$27:$N$27) -> 57.58571429 | O20: =SUMPRODUCT('CSRHub Ratings'!$C20:$N20,'SDG Mapping'!$C$28:$N$28) -> 52.81 | P20: =SUMPRODUCT('CSRHub Ratings'!$C20:$N20,'SDG Mapping'!$C$29:$N$29) -> 53.314 | Q20: =SUMPRODUCT('CSRHub Ratings'!$C20:$N20,'SDG Mapping'!$C$30:$N$30) -> 53.37833333 | R20: =SUMPRODUCT('CSRHub Ratings'!$C20:$N20,'SDG Mapping'!$C$31:$N$31) -> 55.033
A21: ='CSRHub Ratings'!B21 -> Newell Rubbermaid Inc. | B21: =SUMPRODUCT('CSRHub Ratings'!$C21:$N21,'SDG Mapping'!$C$15:$N$15) -> 51.48857143 | C21: =SUMPRODUCT('CSRHub Ratings'!$C21:$N21,'SDG Mapping'!$C$16:$N$16) -> 52.93 | D21: =SUMPRODUCT('CSRHub Ratings'!$C21:$N21,'SDG Mapping'!$C$17:$N$17) -> 52.05333333 | E21: =SUMPRODUCT('CSRHub Ratings'!$C21:$N21,'SDG Mapping'!$C$18:$N$18) -> 49.62 | F21: =SUMPRODUCT('CSRHub Ratings'!$C21:$N21,'SDG Mapping'!$C$19:$N$19) -> 54.28166667 | G21: =SUMPRODUCT('CSRHub Ratings'!$C21:$N21,'SDG Mapping'!$C$20:$N$20) -> 50.3625 | H21: =SUMPRODUCT('CSRHub Ratings'!$C21:$N21,'SDG Mapping'!$C$21:$N$21) -> 51.3075 | I21: =SUMPRODUCT('CSRHub Ratings'!$C21:$N21,'SDG Mapping'!$C$22:$N$22) -> 49.67 | J21: =SUMPRODUCT('CSRHub Ratings'!$C21:$N21,'SDG Mapping'!$C$23:$N$23) -> 51.96625 | K21: =SUMPRODUCT('CSRHub Ratings'!$C21:$N21,'SDG Mapping'!$C$24:$N$24) -> 52.75142857 | L21: =SUMPRODUCT('CSRHub Ratings'!$C21:$N21,'SDG Mapping'!$C$25:$N$25) -> 50.64833333 | M21: =SUMPRODUCT('CSRHub Ratings'!$C21:$N21,'SDG Mapping'!$C$26:$N$26) -> 52.9725 | N21: =SUMPRODUCT('CSRHub Ratings'!$C21:$N21,'SDG Mapping'!$C$27:$N$27) -> 53.6 | O21: =SUMPRODUCT('CSRHub Ratings'!$C21:$N21,'SDG Mapping'!$C$28:$N$28) -> 51.22 | P21: =SUMPRODUCT('CSRHub Ratings'!$C21:$N21,'SDG Mapping'!$C$29:$N$29) -> 52.324 | Q21: =SUMPRODUCT('CSRHub Ratings'!$C21:$N21,'SDG Mapping'!$C$30:$N$30) -> 51.49166667 | R21: =SUMPRODUCT('CSRHub Ratings'!$C21:$N21,'SDG Mapping'!$C$31:$N$31) -> 52.989
A22: ='CSRHub Ratings'!B22 -> Procter & Gamble Company | B22: =SUMPRODUCT('CSRHub Ratings'!$C22:$N22,'SDG Mapping'!$C$15:$N$15) -> 57.29285714 | C22: =SUMPRODUCT('CSRHub Ratings'!$C22:$N22,'SDG Mapping'!$C$16:$N$16) -> 58.632 | D22: =SUMPRODUCT('CSRHub Ratings'!$C22:$N22,'SDG Mapping'!$C$17:$N$17) -> 57.35333333 | E22: =SUMPRODUCT('CSRHub Ratings'!$C22:$N22,'SDG Mapping'!$C$18:$N$18) -> 57.15 | F22: =SUMPRODUCT('CSRHub Ratings'!$C22:$N22,'SDG Mapping'!$C$19:$N$19) -> 57.995 | G22: =SUMPRODUCT('CSRHub Ratings'!$C22:$N22,'SDG Mapping'!$C$20:$N$20) -> 59.84 | H22: =SUMPRODUCT('CSRHub Ratings'!$C22:$N22,'SDG Mapping'!$C$21:$N$21) -> 60.25 | I22: =SUMPRODUCT('CSRHub Ratings'!$C22:$N22,'SDG Mapping'!$C$22:$N$22) -> 58.14 | J22: =SUMPRODUCT('CSRHub Ratings'!$C22:$N22,'SDG Mapping'!$C$23:$N$23) -> 60.5075 | K22: =SUMPRODUCT('CSRHub Ratings'!$C22:$N22,'SDG Mapping'!$C$24:$N$24) -> 57.52857143 | L22: =SUMPRODUCT('CSRHub Ratings'!$C22:$N22,'SDG Mapping'!$C$25:$N$25) -> 60.53666667 | M22: =SUMPRODUCT('CSRHub Ratings'!$C22:$N22,'SDG Mapping'!$C$26:$N$26) -> 60.875 | N22: =SUMPRODUCT('CSRHub Ratings'!$C22:$N22,'SDG Mapping'!$C$27:$N$27) -> 60.17 | O22: =SUMPRODUCT('CSRHub Ratings'!$C22:$N22,'SDG Mapping'!$C$28:$N$28) -> 62.02 | P22: =SUMPRODUCT('CSRHub Ratings'!$C22:$N22,'SDG Mapping'!$C$29:$N$29) -> 60.906 | Q22: =SUMPRODUCT('CSRHub Ratings'!$C22:$N22,'SDG Mapping'!$C$30:$N$30) -> 57.25833333 | R22: =SUMPRODUCT('CSRHub Ratings'!$C22:$N22,'SDG Mapping'!$C$31:$N$31) -> 59.526
A23: ='CSRHub Ratings'!B23 -> Unilever PLC | B23: =SUMPRODUCT('CSRHub Ratings'!$C23:$N23,'SDG Mapping'!$C$15:$N$15) -> 58.75 | C23: =SUMPRODUCT('CSRHub Ratings'!$C23:$N23,'SDG Mapping'!$C$16:$N$16) -> 61.45 | D23: =SUMPRODUCT('CSRHub Ratings'!$C23:$N23,'SDG Mapping'!$C$17:$N$17) -> 60.43333333 | E23: =SUMPRODUCT('CSRHub Ratings'!$C23:$N23,'SDG Mapping'!$C$18:$N$18) -> 59.61 | F23: =SUMPRODUCT('CSRHub Ratings'!$C23:$N23,'SDG Mapping'!$C$19:$N$19) -> 58.51166667 | G23: =SUMPRODUCT('CSRHub Ratings'!$C23:$N23,'SDG Mapping'!$C$20:$N$20) -> 61.9775 | H23: =SUMPRODUCT('CSRHub Ratings'!$C23:$N23,'SDG Mapping'!$C$21:$N$21) -> 62.6075 | I23: =SUMPRODUCT('CSRHub Ratings'!$C23:$N23,'SDG Mapping'!$C$22:$N$22) -> 58.56 | J23: =SUMPRODUCT('CSRHub Ratings'!$C23:$N23,'SDG Mapping'!$C$23:$N$23) -> 63.12375 | K23: =SUMPRODUCT('CSRHub Ratings'!$C23:$N23,'SDG Mapping'!$C$24:$N$24) -> 58.84714286 | L23: =SUMPRODUCT('CSRHub Ratings'!$C23:$N23,'SDG Mapping'!$C$25:$N$25) -> 62.70166667 | M23: =SUMPRODUCT('CSRHub Ratings'!$C23:$N23,'SDG Mapping'!$C$26:$N$26) -> 62.97 | N23: =SUMPRODUCT('CSRHub Ratings'!$C23:$N23,'SDG Mapping'!$C$27:$N$27) -> 61.27285714 | O23: =SUMPRODUCT('CSRHub Ratings'!$C23:$N23,'SDG Mapping'!$C$28:$N$28) -> 63.545 | P23: =SUMPRODUCT('CSRHub Ratings'!$C23:$N23,'SDG Mapping'!$C$29:$N$29) -> 61.866 | Q23: =SUMPRODUCT('CSRHub Ratings'!$C23:$N23,'SDG Mapping'!$C$30:$N$30) -> 58.14833333 | R23: =SUMPRODUCT('CSRHub Ratings'!$C23:$N23,'SDG Mapping'!$C$31:$N$31) -> 60.682
A24: ='CSRHub Ratings'!B24 -> Church & Dwight Co., Inc. | B24: =SUMPRODUCT('CSRHub Ratings'!$C24:$N24,'SDG Mapping'!$C$15:$N$15) -> 53.75714286 | C24: =SUMPRODUCT('CSRHub Ratings'!$C24:$N24,'SDG Mapping'!$C$16:$N$16) -> 58.774 | D24: =SUMPRODUCT('CSRHub Ratings'!$C24:$N24,'SDG Mapping'!$C$17:$N$17) -> 54.52333333 | E24: =SUMPRODUCT('CSRHub Ratings'!$C24:$N24,'SDG Mapping'!$C$18:$N$18) -> 51.2125 | F24: =SUMPRODUCT('CSRHub Ratings'!$C24:$N24,'SDG Mapping'!$C$19:$N$19) -> 51.70833333 | G24: =SUMPRODUCT('CSRHub Ratings'!$C24:$N24,'SDG Mapping'!$C$20:$N$20) -> 60.1875 | H24: =SUMPRODUCT('CSRHub Ratings'!$C24:$N24,'SDG Mapping'!$C$21:$N$21) -> 57.845 | I24: =SUMPRODUCT('CSRHub Ratings'!$C24:$N24,'SDG Mapping'!$C$22:$N$22) -> 50.466 | J24: =SUMPRODUCT('CSRHub Ratings'!$C24:$N24,'SDG Mapping'!$C$23:$N$23) -> 59.16 | K24: =SUMPRODUCT('CSRHub Ratings'!$C24:$N24,'SDG Mapping'!$C$24:$N$24) -> 53.27 | L24: =SUMPRODUCT('CSRHub Ratings'!$C24:$N24,'SDG Mapping'!$C$25:$N$25) -> 60.18666667 | M24: =SUMPRODUCT('CSRHub Ratings'!$C24:$N24,'SDG Mapping'!$C$26:$N$26) -> 61 | N24: =SUMPRODUCT('CSRHub Ratings'!$C24:$N24,'SDG Mapping'!$C$27:$N$27) -> 56.86428571 | O24: =SUMPRODUCT('CSRHub Ratings'!$C24:$N24,'SDG Mapping'!$C$28:$N$28) -> 62.3575 | P24: =SUMPRODUCT('CSRHub Ratings'!$C24:$N24,'SDG Mapping'!$C$29:$N$29) -> 60.758 | Q24: =SUMPRODUCT('CSRHub Ratings'!$C24:$N24,'SDG Mapping'!$C$30:$N$30) -> 52.90833333 | R24: =SUMPRODUCT('CSRHub Ratings'!$C24:$N24,'SDG Mapping'!$C$31:$N$31) -> 57.036
A25: ='CSRHub Ratings'!B25 -> Edgewell Personal Care Company | B25: =SUMPRODUCT('CSRHub Ratings'!$C25:$N25,'SDG Mapping'!$C$15:$N$15) -> 52.16142857 | C25: =SUMPRODUCT('CSRHub Ratings'!$C25:$N25,'SDG Mapping'!$C$16:$N$16) -> 54.45 | D25: =SUMPRODUCT('CSRHub Ratings'!$C25:$N25,'SDG Mapping'!$C$17:$N$17) -> 54.43666667 | E25: =SUMPRODUCT('CSRHub Ratings'!$C25:$N25,'SDG Mapping'!$C$18:$N$18) -> 52.685 | F25: =SUMPRODUCT('CSRHub Ratings'!$C25:$N25,'SDG Mapping'!$C$19:$N$19) -> 52.865 | G25: =SUMPRODUCT('CSRHub Ratings'!$C25:$N25,'SDG Mapping'!$C$20:$N$20) -> 53.6175 | H25: =SUMPRODUCT('CSRHub Ratings'!$C25:$N25,'SDG Mapping'!$C$21:$N$21) -> 55.2875 | I25: =SUMPRODUCT('CSRHub Ratings'!$C25:$N25,'SDG Mapping'!$C$22:$N$22) -> 50.316 | J25: =SUMPRODUCT('CSRHub Ratings'!$C25:$N25,'SDG Mapping'!$C$23:$N$23) -> 55.895 | K25: =SUMPRODUCT('CSRHub Ratings'!$C25:$N25,'SDG Mapping'!$C$24:$N$24) -> 52.48571429 | L25: =SUMPRODUCT('CSRHub Ratings'!$C25:$N25,'SDG Mapping'!$C$25:$N$25) -> 54.525 | M25: =SUMPRODUCT('CSRHub Ratings'!$C25:$N25,'SDG Mapping'!$C$26:$N$26) -> 55.995 | N25: =SUMPRODUCT('CSRHub Ratings'!$C25:$N25,'SDG Mapping'!$C$27:$N$27) -> 55.59428571 | O25: =SUMPRODUCT('CSRHub Ratings'!$C25:$N25,'SDG Mapping'!$C$28:$N$28) -> 55.615 | P25: =SUMPRODUCT('CSRHub Ratings'!$C25:$N25,'SDG Mapping'!$C$29:$N$29) -> 55.362 | Q25: =SUMPRODUCT('CSRHub Ratings'!$C25:$N25,'SDG Mapping'!$C$30:$N$30) -> 51.69166667 | R25: =SUMPRODUCT('CSRHub Ratings'!$C25:$N25,'SDG Mapping'!$C$31:$N$31) -> 54.635
A26: ='CSRHub Ratings'!B26 -> BIC | B26: =SUMPRODUCT('CSRHub Ratings'!$C26:$N26,'SDG Mapping'!$C$15:$N$15) -> 58.04 | C26: =SUMPRODUCT('CSRHub Ratings'!$C26:$N26,'SDG Mapping'!$C$16:$N$16) -> 58.276 | D26: =SUMPRODUCT('CSRHub Ratings'!$C26:$N26,'SDG Mapping'!$C$17:$N$17) -> 60.52333333 | E26: =SUMPRODUCT('CSRHub Ratings'!$C26:$N26,'SDG Mapping'!$C$18:$N$18) -> 60.815 | F26: =SUMPRODUCT('CSRHub Ratings'!$C26:$N26,'SDG Mapping'!$C$19:$N$19) -> 57.98166667 | G26: =SUMPRODUCT('CSRHub Ratings'!$C26:$N26,'SDG Mapping'!$C$20:$N$20) -> 55.9675 | H26: =SUMPRODUCT('CSRHub Ratings'!$C26:$N26,'SDG Mapping'!$C$21:$N$21) -> 58.7575 | I26: =SUMPRODUCT('CSRHub Ratings'!$C26:$N26,'SDG Mapping'!$C$22:$N$22) -> 58.946 | J26: =SUMPRODUCT('CSRHub Ratings'!$C26:$N26,'SDG Mapping'!$C$23:$N$23) -> 58.865 | K26: =SUMPRODUCT('CSRHub Ratings'!$C26:$N26,'SDG Mapping'!$C$24:$N$24) -> 57.89142857 | L26: =SUMPRODUCT('CSRHub Ratings'!$C26:$N26,'SDG Mapping'!$C$25:$N$25) -> 56.86833333 | M26: =SUMPRODUCT('CSRHub Ratings'!$C26:$N26,'SDG Mapping'!$C$26:$N$26) -> 58.68 | N26: =SUMPRODUCT('CSRHub Ratings'!$C26:$N26,'SDG Mapping'!$C$27:$N$27) -> 57.69714286 | O26: =SUMPRODUCT('CSRHub Ratings'!$C26:$N26,'SDG Mapping'!$C$28:$N$28) -> 56.9725 | P26: =SUMPRODUCT('CSRHub Ratings'!$C26:$N26,'SDG Mapping'!$C$29:$N$29) -> 57.218 | Q26: =SUMPRODUCT('CSRHub Ratings'!$C26:$N26,'SDG Mapping'!$C$30:$N$30) -> 59.485 | R26: =SUMPRODUCT('CSRHub Ratings'!$C26:$N26,'SDG Mapping'!$C$31:$N$31) -> 57.172
A27: ='CSRHub Ratings'!B27 -> Johnson & Johnson | B27: =SUMPRODUCT('CSRHub Ratings'!$C27:$N27,'SDG Mapping'!$C$15:$N$15) -> 58.29571429 | C27: =SUMPRODUCT('CSRHub Ratings'!$C27:$N27,'SDG Mapping'!$C$16:$N$16) -> 61.764 | D27: =SUMPRODUCT('CSRHub Ratings'!$C27:$N27,'SDG Mapping'!$C$17:$N$17) -> 61.6 | E27: =SUMPRODUCT('CSRHub Ratings'!$C27:$N27,'SDG Mapping'!$C$18:$N$18) -> 59.5475 | F27: =SUMPRODUCT('CSRHub Ratings'!$C27:$N27,'SDG Mapping'!$C$19:$N$19) -> 58.49666667 | G27: =SUMPRODUCT('CSRHub Ratings'!$C27:$N27,'SDG Mapping'!$C$20:$N$20) -> 60.9125 | H27: =SUMPRODUCT('CSRHub Ratings'!$C27:$N27,'SDG Mapping'!$C$21:$N$21) -> 62.47 | I27: =SUMPRODUCT('CSRHub Ratings'!$C27:$N27,'SDG Mapping'!$C$22:$N$22) -> 57.866 | J27: =SUMPRODUCT('CSRHub Ratings'!$C27:$N27,'SDG Mapping'!$C$23:$N$23) -> 62.63375 | K27: =SUMPRODUCT('CSRHub Ratings'!$C27:$N27,'SDG Mapping'!$C$24:$N$24) -> 58.21 | L27: =SUMPRODUCT('CSRHub Ratings'!$C27:$N27,'SDG Mapping'!$C$25:$N$25) -> 61.52333333 | M27: =SUMPRODUCT('CSRHub Ratings'!$C27:$N27,'SDG Mapping'!$C$26:$N$26) -> 63.5075 | N27: =SUMPRODUCT('CSRHub Ratings'!$C27:$N27,'SDG Mapping'!$C$27:$N$27) -> 61.00714286 | O27: =SUMPRODUCT('CSRHub Ratings'!$C27:$N27,'SDG Mapping'!$C$28:$N$28) -> 63.235 | P27: =SUMPRODUCT('CSRHub Ratings'!$C27:$N27,'SDG Mapping'!$C$29:$N$29) -> 61.858 | Q27: =SUMPRODUCT('CSRHub Ratings'!$C27:$N27,'SDG Mapping'!$C$30:$N$30) -> 58.81 | R27: =SUMPRODUCT('CSRHub Ratings'!$C27:$N27,'SDG Mapping'!$C$31:$N$31) -> 60.398
A28: ='CSRHub Ratings'!B28 -> Amazon.com, Inc. | B28: =SUMPRODUCT('CSRHub Ratings'!$C28:$N28,'SDG Mapping'!$C$15:$N$15) -> 50.96428571 | C28: =SUMPRODUCT('CSRHub Ratings'!$C28:$N28,'SDG Mapping'!$C$16:$N$16) -> 50.726 | D28: =SUMPRODUCT('CSRHub Ratings'!$C28:$N28,'SDG Mapping'!$C$17:$N$17) -> 50.95333333 | E28: =SUMPRODUCT('CSRHub Ratings'!$C28:$N28,'SDG Mapping'!$C$18:$N$18) -> 49.83 | F28: =SUMPRODUCT('CSRHub Ratings'!$C28:$N28,'SDG Mapping'!$C$19:$N$19) -> 51.44666667 | G28: =SUMPRODUCT('CSRHub Ratings'!$C28:$N28,'SDG Mapping'!$C$20:$N$20) -> 49.8025 | H28: =SUMPRODUCT('CSRHub Ratings'!$C28:$N28,'SDG Mapping'!$C$21:$N$21) -> 51.9875 | I28: =SUMPRODUCT('CSRHub Ratings'!$C28:$N28,'SDG Mapping'!$C$22:$N$22) -> 50.09 | J28: =SUMPRODUCT('CSRHub Ratings'!$C28:$N28,'SDG Mapping'!$C$23:$N$23) -> 50.8225 | K28: =SUMPRODUCT('CSRHub Ratings'!$C28:$N28,'SDG Mapping'!$C$24:$N$24) -> 51.04857143 | L28: =SUMPRODUCT('CSRHub Ratings'!$C28:$N28,'SDG Mapping'!$C$25:$N$25) -> 50.34666667 | M28: =SUMPRODUCT('CSRHub Ratings'!$C28:$N28,'SDG Mapping'!$C$26:$N$26) -> 50.5425 | N28: =SUMPRODUCT('CSRHub Ratings'!$C28:$N28,'SDG Mapping'!$C$27:$N$27) -> 52.13571429 | O28: =SUMPRODUCT('CSRHub Ratings'!$C28:$N28,'SDG Mapping'!$C$28:$N$28) -> 49.8375 | P28: =SUMPRODUCT('CSRHub Ratings'!$C28:$N28,'SDG Mapping'!$C$29:$N$29) -> 50 | Q28: =SUMPRODUCT('CSRHub Ratings'!$C28:$N28,'SDG Mapping'!$C$30:$N$30) -> 50.51666667 | R28: =SUMPRODUCT('CSRHub Ratings'!$C28:$N28,'SDG Mapping'!$C$31:$N$31) -> 51.607
A29: ='CSRHub Ratings'!B29 -> Groupe Danone | B29: =SUMPRODUCT('CSRHub Ratings'!$C29:$N29,'SDG Mapping'!$C$15:$N$15) -> 60.19285714 | C29: =SUMPRODUCT('CSRHub Ratings'!$C29:$N29,'SDG Mapping'!$C$16:$N$16) -> 63.782 | D29: =SUMPRODUCT('CSRHub Ratings'!$C29:$N29,'SDG Mapping'!$C$17:$N$17) -> 62.04333333 | E29: =SUMPRODUCT('CSRHub Ratings'!$C29:$N29,'SDG Mapping'!$C$18:$N$18) -> 60.4075 | F29: =SUMPRODUCT('CSRHub Ratings'!$C29:$N29,'SDG Mapping'!$C$19:$N$19) -> 61.06833333 | G29: =SUMPRODUCT('CSRHub Ratings'!$C29:$N29,'SDG Mapping'!$C$20:$N$20) -> 63.285 | H29: =SUMPRODUCT('CSRHub Ratings'!$C29:$N29,'SDG Mapping'!$C$21:$N$21) -> 64.28 | I29: =SUMPRODUCT('CSRHub Ratings'!$C29:$N29,'SDG Mapping'!$C$22:$N$22) -> 60.76 | J29: =SUMPRODUCT('CSRHub Ratings'!$C29:$N29,'SDG Mapping'!$C$23:$N$23) -> 65.03375 | K29: =SUMPRODUCT('CSRHub Ratings'!$C29:$N29,'SDG Mapping'!$C$24:$N$24) -> 60.53142857 | L29: =SUMPRODUCT('CSRHub Ratings'!$C29:$N29,'SDG Mapping'!$C$25:$N$25) -> 64.18666667 | M29: =SUMPRODUCT('CSRHub Ratings'!$C29:$N29,'SDG Mapping'!$C$26:$N$26) -> 66.5175 | N29: =SUMPRODUCT('CSRHub Ratings'!$C29:$N29,'SDG Mapping'!$C$27:$N$27) -> 63.44285714 | O29: =SUMPRODUCT('CSRHub Ratings'!$C29:$N29,'SDG Mapping'!$C$28:$N$28) -> 66.5375 | P29: =SUMPRODUCT('CSRHub Ratings'!$C29:$N29,'SDG Mapping'!$C$29:$N$29) -> 65.232 | Q29: =SUMPRODUCT('CSRHub Ratings'!$C29:$N29,'SDG Mapping'!$C$30:$N$30) -> 61.37166667 | R29: =SUMPRODUCT('CSRHub Ratings'!$C29:$N29,'SDG Mapping'!$C$31:$N$31) -> 62.721
A30: ='CSRHub Ratings'!B30 -> Walmart Inc. | B30: =SUMPRODUCT('CSRHub Ratings'!$C30:$N30,'SDG Mapping'!$C$15:$N$15) -> 53.49857143 | C30: =SUMPRODUCT('CSRHub Ratings'!$C30:$N30,'SDG Mapping'!$C$16:$N$16) -> 56.284 | D30: =SUMPRODUCT('CSRHub Ratings'!$C30:$N30,'SDG Mapping'!$C$17:$N$17) -> 53.5 | E30: =SUMPRODUCT('CSRHub Ratings'!$C30:$N30,'SDG Mapping'!$C$18:$N$18) -> 50.98 | F30: =SUMPRODUCT('CSRHub Ratings'!$C30:$N30,'SDG Mapping'!$C$19:$N$19) -> 53.34166667 | G30: =SUMPRODUCT('CSRHub Ratings'!$C30:$N30,'SDG Mapping'!$C$20:$N$20) -> 56.95 | H30: =SUMPRODUCT('CSRHub Ratings'!$C30:$N30,'SDG Mapping'!$C$21:$N$21) -> 55.9675 | I30: =SUMPRODUCT('CSRHub Ratings'!$C30:$N30,'SDG Mapping'!$C$22:$N$22) -> 52.056 | J30: =SUMPRODUCT('CSRHub Ratings'!$C30:$N30,'SDG Mapping'!$C$23:$N$23) -> 56.15875 | K30: =SUMPRODUCT('CSRHub Ratings'!$C30:$N30,'SDG Mapping'!$C$24:$N$24) -> 53.50285714 | L30: =SUMPRODUCT('CSRHub Ratings'!$C30:$N30,'SDG Mapping'!$C$25:$N$25) -> 56.76166667 | M30: =SUMPRODUCT('CSRHub Ratings'!$C30:$N30,'SDG Mapping'!$C$26:$N$26) -> 57.1475 | N30: =SUMPRODUCT('CSRHub Ratings'!$C30:$N30,'SDG Mapping'!$C$27:$N$27) -> 55.67571429 | O30: =SUMPRODUCT('CSRHub Ratings'!$C30:$N30,'SDG Mapping'!$C$28:$N$28) -> 57.935 | P30: =SUMPRODUCT('CSRHub Ratings'!$C30:$N30,'SDG Mapping'!$C$29:$N$29) -> 56.874 | Q30: =SUMPRODUCT('CSRHub Ratings'!$C30:$N30,'SDG Mapping'!$C$30:$N$30) -> 52.315 | R30: =SUMPRODUCT('CSRHub Ratings'!$C30:$N30,'SDG Mapping'!$C$31:$N$31) -> 55.499
A31: ='CSRHub Ratings'!B31 -> Carrefour | B31: =SUMPRODUCT('CSRHub Ratings'!$C31:$N31,'SDG Mapping'!$C$15:$N$15) -> 58.85714286 | C31: =SUMPRODUCT('CSRHub Ratings'!$C31:$N31,'SDG Mapping'!$C$16:$N$16) -> 61.658 | D31: =SUMPRODUCT('CSRHub Ratings'!$C31:$N31,'SDG Mapping'!$C$17:$N$17) -> 59.52333333 | E31: =SUMPRODUCT('CSRHub Ratings'!$C31:$N31,'SDG Mapping'!$C$18:$N$18) -> 58.065 | F31: =SUMPRODUCT('CSRHub Ratings'!$C31:$N31,'SDG Mapping'!$C$19:$N$19) -> 58.37666667 | G31: =SUMPRODUCT('CSRHub Ratings'!$C31:$N31,'SDG Mapping'!$C$20:$N$20) -> 61.1975 | H31: =SUMPRODUCT('CSRHub Ratings'!$C31:$N31,'SDG Mapping'!$C$21:$N$21) -> 59.355 | I31: =SUMPRODUCT('CSRHub Ratings'!$C31:$N31,'SDG Mapping'!$C$22:$N$22) -> 59.892 | J31: =SUMPRODUCT('CSRHub Ratings'!$C31:$N31,'SDG Mapping'!$C$23:$N$23) -> 60.8375 | K31: =SUMPRODUCT('CSRHub Ratings'!$C31:$N31,'SDG Mapping'!$C$24:$N$24) -> 58.71571429 | L31: =SUMPRODUCT('CSRHub Ratings'!$C31:$N31,'SDG Mapping'!$C$25:$N$25) -> 60.845 | M31: =SUMPRODUCT('CSRHub Ratings'!$C31:$N31,'SDG Mapping'!$C$26:$N$26) -> 62.9175 | N31: =SUMPRODUCT('CSRHub Ratings'!$C31:$N31,'SDG Mapping'!$C$27:$N$27) -> 58.26714286 | O31: =SUMPRODUCT('CSRHub Ratings'!$C31:$N31,'SDG Mapping'!$C$28:$N$28) -> 62.8675 | P31: =SUMPRODUCT('CSRHub Ratings'!$C31:$N31,'SDG Mapping'!$C$29:$N$29) -> 61.538 | Q31: =SUMPRODUCT('CSRHub Ratings'!$C31:$N31,'SDG Mapping'!$C$30:$N$30) -> 59.12333333 | R31: =SUMPRODUCT('CSRHub Ratings'!$C31:$N31,'SDG Mapping'!$C$31:$N$31) -> 58.575
A32: ='CSRHub Ratings'!B32 -> 0
A33: ='CSRHub Ratings'!B33 -> 0
A34: ='CSRHub Ratings'!B34 -> 0

Sheet SDG Mapping
A7: CSRHub SDG Mapping
A8: Below is a mapping of CSRHub data to the SDGs. The model was developed by our partner Valutus, under the title "Materiality Matters." You can learn more about Valutus and its work here https://valutus.com/.
A11: You can request a custom mapping via this form.
A14: SDG # | B14: SDG Description | C14: Community Dev & Philanthropy | D14: Human Rights & Supply Chain | E14: Product | F14: Compensation & Benefits | G14: Diversity & Labor Rights | H14: Training, Health & Safety | I14: Energy & Climate Change | J14: Environment Policy & Reporting | K14: Resource Management | L14: Board | M14: Leadership Ethics | N14: Transparency & Reporting
A15: 1 | B15: End poverty in all its forms everywhere | C15: 0.2857142857 | E15: 0.2857142857 | F15: 0.2857142857 | M15: 0.1428571429
A16: 2 | B16: End hunger, achieve food security and improved nutrition and promote sustainable agriculture | C16: 0.2 | D16: 0.4 | E16: 0.2 | K16: 0.2
A17: 3 | B17: Ensure healthy lives and promote well-being for all at all ages | C17: 0.3333333333 | D17: 0.3333333333 | H17: 0.3333333333
A18: 4 | B18: Ensure inclusive and equitable quality education and promote lifelong learning opportunities for all | C18: 0.25 | G18: 0.25 | H18: 0.5
A19: 5 | B19: Achieve gender equality and empower all women and girls | E19: 0.1666666667 | G19: 0.3333333333 | L19: 0.3333333333 | M19: 0.1666666667
A20: 6 | B20: Ensure availability and sustainable management of water and sanitation for all | C20: 0.25 | E20: 0.25 | K20: 0.5
A21: 7 | B21: Ensure access to affordable, reliable, sustainable and modern energy for all | C21: 0.25 | I21: 0.5 | J21: 0.25
A22: 8 | B22: Promote sustained, inclusive and sustainable economic growth, full and productive employment and decent work for all | E22: 0.2 | F22: 0.4 | G22: 0.4
A23: 9 | B23: Build resilient infrastructure, promote inclusive and sustainable industrialization and foster innovation | D23: 0.25 | H23: 0.125 | I23: 0.25 | J23: 0.25 | K23: 0.125
A24: 10 | B24: Reduce inequality within and among countries | C24: 0.1428571429 | E24: 0.2857142857 | F24: 0.1428571429 | G24: 0.1428571429 | L24: 0.1428571429 | M24: 0.1428571429
A25: 11 | B25: Make cities and human settlements inclusive, safe, resilient and sustainable | C25: 0.1666666667 | E25: 0.1666666667 | I25: 0.1666666667 | J25: 0.1666666667 | K25: 0.3333333333
A26: 12 | B26: Ensure sustainable consumption and production patterns | D26: 0.5 | J26: 0.25 | K26: 0.25
A27: 13 | B27: Take urgent action to combat climate change and its impacts | I27: 0.2857142857 | J27: 0.2857142857 | L27: 0.1428571429 | M27: 0.1428571429 | N27: 0.1428571429
A28: 14 | B28: Conserve and sustainably use the oceans, seas and marine resources for sustainable development | D28: 0.25 | J28: 0.25 | K28: 0.5
A29: 15 | B29: Protect, restore and promote sustainable use of terrestrial ecosystems, sustainably manage forests, combat desertification, and halt and reverse land degradation and halt biodiversity loss | D29: 0.2 | J29: 0.2 | K29: 0.4 | M29: 0.2
A30: 16 | B30: Promote peaceful and inclusive societies for sustainable development, provide access to justice for all and build effective, accountable and inclusive institutions at all levels | C30: 0.3333333333 | E30: 0.1666666667 | G30: 0.3333333333 | M30: 0.1666666667
A31: 17 | B31: Strengthen the means of implementation and revitalize the global partnership for sustainable development | C31: 0.1 | E31: 0.1 | I31: 0.1 | J31: 0.2 | K31: 0.1 | L31: 0.1 | M31: 0.1 | N31: 0.2
